bitfinex-derivatives/quotes_SOLF0:USTF0_20241002
["timestamp","ask_amount","ask_price","bid_price","bid_amount"]
[1727872402547,2.6623,145.47,145.41,22.63]
[1727872402939,2.6623,145.47,145.41,6.14]
[1727872403149,2.6623,145.47,145.38,22.63]
[1727872403448,2.6623,145.47,145.39,3.4393]
[1727872403650,2.6623,145.47,145.38,22.63]
[1727872403951,3.4395,145.4,145.38,6.14]
[1727872404147,22.63,145.46,145.37,0.12502]
[1727872404342,22.63,145.46,145.38,16.49]
[1727872404343,3.4387,145.43,145.38,16.49]
[1727872404546,6.14,145.46,145.4,16.49]
[1727872404855,2.6623,145.47,145.4,16.49]
[1727872405152,2.6623,145.47,145.42,16.49]
[1727872405445,1.3211,145.47,145.44,16.49]
[1727872405653,3.438,145.46,145.44,16.49]
[1727872405848,22.63,145.45,145.29,81.1437]
[1727872406051,16.49,145.4,145.31,27.46461302]
[1727872406351,3.4397,145.38,145.31,27.46461302]
[1727872406943,3.4397,145.38,145.35,3.4402]
[1727872407151,3.4397,145.39,145.33,16.49]
[1727872408247,3.4397,145.39,145.36,3.4401]
[1727872409955,1.3211,145.47,145.35,22.71]
[1727872410160,17.8111,145.47,145.37,16.61502]
[1727872410348,3.4387,145.43,145.37,16.61502]
[1727872410962,17.8111,145.47,145.39,16.49]
[1727872411154,1.3211,145.47,145.39,26.09834]
[1727872411754,3.4383,145.45,145.41,3.4389]
[1727872412048,0.12502,145.49,145.44,16.49]
[1727872412259,0.12502,145.49,145.48,16.49]
[1727872412453,0.12502,145.49,145.48,22.71]
[1727872412756,0.12502,145.49,145.48,26.1474]
[1727872413765,0.12502,145.49,145.48,9.6574]
[1727872414759,0.12502,145.49,145.48,6.22]
[1727872416261,0.12502,145.49,145.48,9.6574]
[1727872418260,3.436,145.54,145.5,3.4368]
[1727872418961,3.4362,145.53,145.5,3.4368]
[1727872419954,1.3303,145.56,145.48,6.22]
[1727872420157,1.3303,145.56,145.51,3.4365]
[1727872420551,32.63,145.59,145.51,3.4365]
[1727872420957,3.4361,145.54,145.51,3.4365]
[1727872421363,6.22,145.59,145.49,26.41]
[1727872421563,3.4364,145.53,145.5,3.4368]
[1727872423362,32.63,145.59,145.47,29.89890989]
[1727872423564,3.4367,145.51,145.48,6.22]
[1727872423865,32.63,145.59,145.46,2.7155]
[1727872423866,26.41,145.57,145.46,2.7155]
[1727872424065,3.4373,145.49,145.47,6.22]
[1727872424367,6.34502,145.55,145.47,6.22]
[1727872424760,6.34502,145.55,145.47,9.6576]
[1727872425567,3.4371,145.5,145.47,9.6576]
[1727872425870,6.34502,145.55,145.47,6.22]
[1727872426365,6.34502,145.55,145.47,9.6575]
[1727872426573,3.437,145.5,145.47,3.4375]
[1727872426776,6.34502,145.55,145.47,9.6575]
[1727872427072,3.4371,145.5,145.47,9.6575]
[1727872428069,6.34502,145.55,145.47,6.22]
[1727872428270,0.12502,145.55,145.47,36.06792968]
[1727872428574,3.4363,145.53,145.5,3.4368]
[1727872428871,0.12502,145.55,145.47,36.06792968]
[1727872429080,0.12502,145.55,145.5,26.41]
[1727872429766,0.12502,145.55,145.48,1.3511]
[1727872430274,0.12502,145.55,145.49,3.437]
[1727872431273,0.12502,145.55,145.47,6.22]
[1727872431480,6.34502,145.55,145.47,6.22]
[1727872431774,26.41,145.54,145.46,6.22]
[1727872432274,3.9645,145.53,145.46,6.22]
[1727872432579,3.4376,145.47,145.46,6.22]
[1727872432966,3.9645,145.53,145.46,6.22]
[1727872433677,20.4545,145.53,145.46,6.22]
[1727872434068,20.4545,145.53,145.44,16.49]
[1727872434268,20.4545,145.53,145.44,6.22]
[1727872434269,16.49,145.51,145.44,6.22]
[1727872434573,22.71,145.51,145.44,6.22]
[1727872434885,3.4381,145.45,145.44,6.22]
[1727872435077,22.71,145.51,145.44,9.6583]
[1727872435276,3.4378,145.47,145.44,9.6583]
[1727872435474,22.71,145.51,145.44,3.4383]
[1727872435780,22.71,145.51,145.43,6.34502]
[1727872435781,6.22,145.51,145.43,6.34502]
[1727872435981,3.4383,145.44,145.43,6.34502]
[1727872438671,3.4379,145.46,145.43,9.78342]
[1727872439175,3.4377,145.47,145.44,3.4382]
[1727872439476,6.16,145.52,145.43,6.34502]
[1727872440274,3.438,145.46,145.43,9.78342]
[1727872440681,3.438,145.46,145.43,6.34502]
[1727872440880,6.16,145.52,145.43,6.34502]
[1727872441081,30.3645,145.53,145.43,6.34502]
[1727872441284,6.16,145.52,145.43,6.34502]
[1727872441478,3.4383,145.44,145.43,6.34502]
[1727872441782,3.4383,145.44,145.43,0.12502]
[1727872443290,3.4379,145.46,145.43,0.12502]
[1727872443482,13.0334,145.51,145.43,0.12502]
[1727872443789,2.6454,145.52,145.43,6.28502]
[1727872444083,3.4372,145.49,145.43,6.28502]
[1727872444279,3.4372,145.49,145.43,8.91522]
[1727872444478,3.4372,145.49,145.46,3.4377]
[1727872444875,2.6454,145.52,145.43,8.91522]
[1727872445080,2.6454,145.52,145.45,26.4]
[1727872445081,1.2882,145.52,145.45,26.4]
[1727872445585,1.3155,145.53,145.45,26.4]
[1727872446388,0.12502,145.55,145.45,26.4]
[1727872446981,3.4363,145.53,145.44,1.3729]
[1727872447186,0.12502,145.55,145.47,26.4]
[1727872447390,0.12502,145.55,145.5,3.4367]
[1727872447391,3.4362,145.54,145.5,3.4367]
[1727872448490,3.4362,145.54,145.48,6.16]
[1727872448799,3.4362,145.53,145.48,6.16]
[1727872448983,3.4362,145.53,145.49,3.4371]
[1727872449181,0.12502,145.55,145.46,6.16]
[1727872449584,0.12502,145.55,145.46,9.5977]
[1727872449898,3.4372,145.49,145.46,9.5977]
[1727872450284,32.56,145.54,145.46,6.16]
[1727872450590,33.9306,145.54,145.43,2.75522]
[1727872450791,33.9306,145.54,145.44,3.4383]
[1727872451092,3.4378,145.47,145.44,3.4383]
[1727872451482,3.4378,145.47,145.43,8.91522]
[1727872451681,3.4378,145.47,145.45,3.4381]
[1727872451883,33.9306,145.54,145.43,0.12502]
[1727872452089,3.4383,145.44,145.43,0.12502]
[1727872452690,26.4,145.46,145.35,36.5576]
[1727872452691,3.4395,145.39,145.35,3.9976]
[1727872452900,26.4,145.44,145.35,10.1576]
[1727872453400,3.4396,145.39,145.35,13.5979]
[1727872453894,3.4397,145.38,145.35,1.3428]
[1727872454091,3.4397,145.38,145.34,9.6006]
[1727872454291,3.4397,145.38,145.34,3.4406]
[1727872454897,3.4397,145.38,145.35,3.4404]
[1727872455094,1.3234,145.45,145.34,6.16]
[1727872455403,6.16,145.44,145.37,3.56482]
[1727872455701,3.4396,145.39,145.37,0.12502]
[1727872456291,1.3234,145.45,145.37,0.12502]
[1727872456498,7.4834,145.45,145.37,0.12502]
[1727872456703,3.4392,145.41,145.37,3.56482]
[1727872457902,3.4392,145.41,145.38,3.4397]
[1727872458699,7.4834,145.45,145.37,0.12502]
[1727872458900,3.4389,145.42,145.39,3.4395]
[1727872459297,3.4387,145.43,145.39,3.4393]
[1727872459503,7.5033,145.46,145.38,6.16]
[1727872460101,3.4392,145.41,145.38,9.5996]
[1727872460306,7.5033,145.46,145.38,6.16]
[1727872460800,3.4391,145.41,145.38,6.16]
[1727872461198,3.4391,145.41,145.39,3.4395]
[1727872461407,7.5033,145.46,145.39,3.4395]
[1727872461605,3.4389,145.42,145.39,3.4395]
[1727872462007,3.4386,145.43,145.4,3.4392]
[1727872462200,7.5033,145.46,145.38,6.16]
[1727872462797,3.4391,145.41,145.39,3.4395]
[1727872462997,33.9033,145.46,145.38,6.16]
[1727872463602,33.9033,145.46,145.38,9.5997]
[1727872463603,3.4384,145.44,145.38,9.5997]
[1727872463905,33.9033,145.46,145.38,9.5997]
[1727872464606,3.4391,145.41,145.38,9.5997]
[1727872466105,3.4387,145.43,145.4,3.4392]
[1727872467108,3.4384,145.44,145.41,3.4389]
[1727872468610,1.3433,145.46,145.42,3.4386]
[1727872468611,3.4383,145.45,145.42,3.4386]
[1727872469607,3.4383,145.45,145.38,6.16]
[1727872469608,3.4378,145.47,145.4,3.45932024]
[1727872469908,3.4378,145.47,145.41,3.42320324]
[1727872470109,0.12502,145.49,145.42,9.5187]
[1727872470706,3.4382,145.45,145.42,9.5187]
[1727872471015,0.12502,145.49,145.42,6.08]
[1727872471810,3.4377,145.47,145.44,3.4382]
[1727872472212,0.12502,145.49,145.42,6.08]
[1727872472614,0.12502,145.49,145.43,2.7656]
[1727872472615,3.56222,145.49,145.43,2.7656]
[1727872473516,0.12502,145.49,145.43,2.7656]
[1727872473818,0.12502,145.49,145.43,4.0263]
[1727872474113,0.12502,145.49,145.47,3.4374]
[1727872474314,0.12502,145.49,145.46,6.08]
[1727872475014,0.12502,145.49,145.48,3.4374]
[1727872475415,0.12502,145.55,145.46,6.08]
[1727872476111,0.12502,145.55,145.48,3.4372]
[1727872477021,3.4365,145.52,145.49,3.4371]
[1727872481119,16.63502,145.55,145.49,3.4371]
[1727872481318,3.4367,145.51,145.49,3.4371]
[1727872481522,16.63502,145.55,145.49,3.4371]
[1727872481723,3.4366,145.52,145.49,3.4371]
[1727872481931,16.51,145.53,145.46,6.08]
[1727872482431,16.51,145.53,145.47,3.4376]
[1727872482621,16.63502,145.55,145.46,22.59]
[1727872482920,0.12502,145.55,145.48,16.51]
[1727872483123,16.63502,145.55,145.49,3.4371]
[1727872483517,3.4367,145.52,145.49,3.4371]
[1727872484221,3.4369,145.5,145.48,3.4373]
[1727872485027,3.4367,145.51,145.48,3.4373]
[1727872486124,16.63502,145.55,145.48,3.4373]
[1727872486623,16.51,145.51,145.44,9.5182]
[1727872486835,16.51,145.51,145.44,6.08]
[1727872487124,3.4378,145.47,145.44,9.5182]
[1727872487422,16.51,145.51,145.44,6.08]
[1727872488622,3.4377,145.47,145.44,9.5182]
[1727872489021,16.51,145.51,145.44,9.5182]
[1727872489022,3.4379,145.46,145.44,9.5182]
[1727872490618,3.4377,145.47,145.44,9.5182]
[1727872490817,3.4377,145.47,145.43,4.15132]
[1727872490818,16.51,145.51,145.43,2.89062]
[1727872491019,16.51,145.49,145.43,6.20502]
[1727872491324,3.4378,145.47,145.43,6.20502]
[1727872491523,3.4378,145.47,145.44,3.4382]
[1727872492023,3.4379,145.46,145.44,3.4382]
[1727872492330,3.4379,145.46,145.43,9.64352]
[1727872492523,16.51,145.49,145.43,0.12502]
[1727872492729,3.4383,145.44,145.43,0.12502]
[1727872493124,16.51,145.49,145.43,0.12502]
[1727872493324,3.4379,145.46,145.43,0.12502]
[1727872493628,2.6245,145.5,145.43,0.12502]
[1727872494327,3.4377,145.47,145.44,3.4382]
[1727872494725,3.4377,145.47,145.43,0.12502]
[1727872495731,3.4377,145.47,145.45,3.4381]
[1727872496434,3.4377,145.47,145.43,0.12502]
[1727872496734,3.4377,145.47,145.44,3.4382]
[1727872497038,1.3109,145.5,145.43,16.63502]
[1727872497238,1.3109,145.5,145.46,3.4377]
[1727872497428,3.4374,145.48,145.46,3.4377]
[1727872497732,1.3109,145.5,145.46,3.4377]
[1727872498041,3.4373,145.49,145.46,3.4377]
[1727872500436,22.59,145.53,145.43,16.63502]
[1727872500634,23.9034,145.53,145.43,16.63502]
[1727872501134,3.4375,145.48,145.45,3.4379]
[1727872501339,23.9034,145.53,145.43,16.63502]
[1727872501731,3.4377,145.47,145.44,3.4382]
[1727872501926,16.51,145.51,145.43,0.12502]
[1727872502126,16.51,145.51,145.44,3.4381]
[1727872502127,3.4377,145.47,145.44,3.4381]
[1727872503834,16.51,145.49,145.43,0.12502]
[1727872504135,1.3905,145.48,145.43,0.12502]
[1727872504340,3.4383,145.44,145.43,0.12502]
[1727872504633,16.51,145.45,145.38,5.98]
[1727872504838,3.4397,145.38,145.37,0.12502]
[1727872506042,1.3905,145.4,145.37,0.12502]
[1727872506726,3.4397,145.38,145.37,0.12502]
[1727872507231,1.3905,145.4,145.29,1.3318]
[1727872507433,16.51,145.37,145.29,1.3318]
[1727872507638,16.51,145.37,145.29,4.76351568]
[1727872507842,16.51,145.37,145.31,3.56632]
[1727872508036,3.4407,145.35,145.31,3.56632]
[1727872508935,3.4407,145.34,145.31,0.12502]
[1727872509533,3.4405,145.35,145.31,3.56632]
[1727872509745,16.51,145.37,145.31,3.56632]
[1727872510139,16.51,145.37,145.31,0.12502]
[1727872510646,3.4411,145.32,145.31,0.12502]
[1727872511843,16.51,145.34,145.26,5.98]
[1727872512048,5.98,145.35,145.25,0.12502]
[1727872512049,16.51,145.32,145.25,0.12502]
[1727872512438,3.4422,145.28,145.25,0.12502]
[1727872512639,17.8597,145.32,145.25,0.12502]
[1727872512835,16.51,145.3,145.25,0.12502]
[1727872513737,3.4426,145.26,145.25,0.12502]
[1727872515244,16.51,145.26,145.19,3.56902]
[1727872515450,16.51,145.26,145.19,0.12502]
[1727872515642,17.908,145.26,145.19,0.12502]
[1727872515944,3.4435,145.23,145.19,0.12502]
[1727872517345,3.4435,145.23,145.2,3.444]
[1727872519951,1.398,145.26,145.2,16.51]
[1727872520644,17.8429,145.3,145.2,16.51]
[1727872520847,23.8229,145.3,145.2,16.51]
[1727872521348,1.3329,145.3,145.22,16.51]
[1727872521648,7.41692,145.31,145.24,16.51]
[1727872521844,3.4417,145.3,145.24,19.95225569]
[1727872522246,3.4417,145.3,145.25,3.4426]
[1727872522551,3.4417,145.3,145.24,19.95225569]
[1727872523650,0.12502,145.31,145.25,16.51]
[1727872523847,0.12502,145.31,145.29,3.4418]
[1727872524447,0.12502,145.31,145.28,3.442]
[1727872526056,3.442,145.29,145.26,9.4225]
[1727872526260,0.12502,145.31,145.26,5.98]
[1727872526653,3.442,145.29,145.26,5.98]
[1727872528051,0.12502,145.31,145.28,3.442]
[1727872528255,0.12502,145.31,145.26,5.98]
[1727872528456,3.56652,145.31,145.27,3.4421]
[1727872528750,0.12502,145.31,145.26,5.98]
[1727872529160,3.4416,145.3,145.27,3.4423]
[1727872532251,3.56652,145.31,145.27,3.4423]
[1727872532457,3.56652,145.31,145.27,3.4422]
[1727872535257,3.4417,145.3,145.26,5.98]
[1727872535461,0.12502,145.31,145.26,5.98]
[1727872535854,3.4422,145.28,145.26,5.98]
[1727872536046,0.12502,145.31,145.26,5.98]
[1727872536250,0.12502,145.31,145.26,9.4225]
[1727872536457,3.4417,145.3,145.26,9.4225]
[1727872536652,0.12502,145.31,145.26,5.98]
[1727872537459,0.12502,145.31,145.26,22.49]
[1727872537958,3.4418,145.3,145.27,3.4422]
[1727872539260,0.12502,145.31,145.26,5.98]
[1727872539462,16.63502,145.31,145.24,5.86]
[1727872539972,16.63502,145.31,145.22,5.86]
[1727872539973,16.51,145.29,145.22,5.86]
[1727872540359,3.4429,145.25,145.22,9.3035]
[1727872540859,3.4429,145.25,145.23,3.4433]
[1727872541062,3.4427,145.26,145.21,7.1403]
[1727872541962,3.443,145.25,145.2,92.2299]
[1727872542164,17.8493,145.29,145.21,5.86]
[1727872542463,17.8493,145.29,145.21,9.3036]
[1727872542464,3.4424,145.27,145.21,9.3036]
[1727872542769,17.8493,145.29,145.21,5.86]
[1727872543067,17.8493,145.29,145.21,9.3036]
[1727872543271,3.4432,145.24,145.21,9.3036]
[1727872543664,16.51,145.27,145.2,3.4439]
[1727872543870,3.4433,145.23,145.2,9.3039]
[1727872544565,16.51,145.27,145.2,5.86]
[1727872545364,1.3393,145.29,145.2,22.37]
[1727872545567,1.3393,145.29,145.22,16.51]
[1727872545976,3.4424,145.27,145.24,3.4429]
[1727872546159,1.3393,145.29,145.22,16.51]
[1727872546676,3.4424,145.27,145.23,3.4431]
[1727872547165,3.4424,145.27,145.22,16.51]
[1727872547372,3.4424,145.27,145.24,3.443]
[1727872547965,2.7024,145.3,145.23,3.50248461]
[1727872548168,1.3945,145.3,145.24,22.37]
[1727872548367,1.3945,145.3,145.24,25.82772662]
[1727872548564,0.12502,145.31,145.24,25.82772662]
[1727872548565,0.12502,145.31,145.26,16.51]
[1727872549564,0.12502,145.31,145.25,1.3822]
[1727872549771,0.12502,145.31,145.25,5.86]
[1727872550267,3.4422,145.28,145.25,9.3027]
[1727872550461,0.12502,145.31,145.25,5.86]
[1727872551469,3.442,145.29,145.26,3.4425]
[1727872552072,3.4421,145.28,145.26,3.4425]
[1727872553373,0.12502,145.31,145.26,3.4425]
[1727872553670,0.12502,145.31,145.28,3.4421]
[1727872554079,3.56652,145.31,145.28,3.4421]
[1727872556068,0.12502,145.31,145.25,5.86]
[1727872556275,3.4418,145.3,145.27,3.4422]
[1727872556868,3.4417,145.3,145.27,3.4422]
[1727872557069,0.12502,145.31,145.27,3.4422]
[1727872557476,3.4418,145.3,145.27,3.4422]
[1727872560778,0.12502,145.31,145.25,22.37]
[1727872560982,0.12502,145.31,145.3,3.4416]
[1727872561380,3.4416,145.3,145.28,3.4421]
[1727872562480,3.56652,145.31,145.28,3.4421]
[1727872565482,0.12502,145.31,145.25,22.37]
[1727872565683,0.12502,145.31,145.29,16.51]
[1727872565989,3.56512,145.37,145.3,5.72]
[1727872565990,0.12502,145.37,145.3,5.72]
[1727872566284,3.4408,145.34,145.31,5.72]
[1727872566490,0.12502,145.37,145.31,5.72]
[1727872567180,3.4406,145.35,145.32,3.441]
[1727872567983,16.51,145.36,145.3,5.72]
[1727872568183,17.7902,145.36,145.28,1.2874]
[1727872568374,17.7902,145.36,145.27,17.9076]
[1727872568375,17.7902,145.36,145.29,5.72]
[1727872568580,3.4413,145.32,145.29,9.1617]
[1727872568883,1.2802,145.36,145.29,5.72]
[1727872569085,3.4408,145.34,145.31,3.4413]
[1727872569482,1.2802,145.36,145.29,22.23]
[1727872569784,0.12502,145.37,145.31,16.51]
[1727872570287,0.12502,145.37,145.36,3.4402]
[1727872572284,0.12502,145.37,145.33,6.1704]
[1727872572493,3.4405,145.35,145.33,3.4408]
[1727872572786,0.12502,145.37,145.31,3.4412]
[1727872573090,3.4406,145.35,145.32,5.72]
[1727872573396,0.12502,145.37,145.32,9.1611]
[1727872573588,3.4403,145.36,145.32,5.72]
[1727872573892,0.12502,145.37,145.33,3.4408]
[1727872574080,0.12502,145.37,145.32,22.23]
[1727872574679,0.12502,145.37,145.34,16.51]
[1727872575085,0.12502,145.37,145.36,3.4402]
[1727872575282,0.12502,145.37,145.36,9.1602]
[1727872577182,0.12502,145.37,145.36,25.6702]
[1727872580290,0.12502,145.37,145.36,9.1602]
[1727872585292,0.12502,145.37,145.36,25.6702]
[1727872588999,0.12502,145.37,145.36,19.9502]
[1727872589299,0.12502,145.37,145.36,25.6702]
[1727872590701,0.12502,145.37,145.32,1.2703]
[1727872590903,3.4404,145.36,145.33,9.1608]
[1727872591200,0.12502,145.37,145.33,5.72]
[1727872591595,3.56512,145.37,145.34,3.4406]
[1727872591797,0.12502,145.37,145.33,22.23]
[1727872592702,0.12502,145.37,145.34,3.4406]
[1727872593309,0.12502,145.37,145.33,22.23]
[1727872593498,3.4404,145.36,145.33,9.1608]
[1727872594201,3.4404,145.36,145.33,3.4408]
[1727872594505,3.4404,145.36,145.33,9.1608]
[1727872595206,0.12502,145.37,145.33,22.23]
[1727872595706,0.12502,145.37,145.36,3.4402]
[1727872596098,0.12502,145.37,145.36,19.9502]
[1727872596598,0.12502,145.37,145.36,3.4402]
[1727872601208,3.4404,145.36,145.31,19.88919038]
[1727872601404,0.12502,145.37,145.31,5.72]
[1727872601614,0.12502,145.37,145.29,17.8791]
[1727872601811,3.4411,145.33,145.3,9.1615]
[1727872602112,3.4411,145.33,145.3,5.72]
[1727872602610,3.4411,145.33,145.3,9.1616]
[1727872604010,3.4415,145.31,145.28,74.34]
[1727872604207,3.4415,145.31,145.28,5.72]
[1727872604606,3.4415,145.31,145.28,9.1619]
[1727872604907,3.4412,145.32,145.28,5.72]
[1727872605317,3.4408,145.34,145.29,16.51]
[1727872606212,3.4408,145.34,145.3,3.4415]
[1727872606514,3.4408,145.34,145.29,16.51]
[1727872606515,0.12502,145.37,145.31,3.46339554]
[1727872606707,3.4405,145.35,145.29,16.51]
[1727872606911,3.4405,145.35,145.31,3.4412]
[1727872607108,0.12502,145.37,145.31,3.3871136]
[1727872607410,3.4404,145.36,145.33,3.4408]
[1727872608620,3.4408,145.34,145.32,5.72]
[1727872611616,3.4404,145.35,145.32,9.1611]
[1727872612019,3.4407,145.34,145.32,5.72]
[1727872612223,0.12502,145.37,145.32,5.72]
[1727872612613,0.12502,145.37,145.29,5.72]
[1727872613116,3.4407,145.34,145.31,3.4413]
[1727872613312,0.12502,145.37,145.29,5.72]
[1727872614319,0.12502,145.37,145.3,3.4415]
[1727872614828,0.12502,145.37,145.29,5.72]
[1727872615125,3.4408,145.34,145.31,3.4413]
[1727872616827,3.4409,145.33,145.3,3.4415]
[1727872617335,16.51,145.36,145.29,5.72]
[1727872617635,16.51,145.36,145.29,9.1617]
[1727872618022,3.4411,145.33,145.29,9.1617]
[1727872618225,16.51,145.36,145.29,3.4417]
[1727872618429,16.51,145.36,145.29,9.1617]
[1727872618730,3.4413,145.32,145.29,9.1617]
[1727872619125,22.23,145.36,145.31,3.4414]
[1727872619328,3.4408,145.34,145.31,3.4414]
[1727872619625,22.23,145.36,145.3,3.4415]
[1727872619929,3.4411,145.33,145.3,3.4415]
[1727872620124,22.23,145.36,145.3,3.4415]
[1727872620529,3.4406,145.35,145.3,3.4415]
[1727872620729,22.23,145.36,145.3,3.4415]
[1727872621328,3.4411,145.32,145.3,3.4415]
[1727872624323,3.4411,145.32,145.29,9.1618]
[1727872624933,3.4411,145.32,145.29,3.4418]
[1727872625131,5.72,145.36,145.24,1.374]
[1727872625132,3.4424,145.27,145.24,3.4429]
[1727872625328,10.58,145.28,145.22,16.28]
[1727872625636,16.53,145.29,145.22,5.7]
[1727872626036,3.4426,145.26,145.22,9.1434]
[1727872626231,3.4426,145.26,145.22,5.7]
[1727872626430,3.4426,145.26,145.2,5.72]
[1727872626626,16.53,145.27,145.19,0.12502]
[1727872626836,22.25,145.27,145.19,0.12502]
[1727872627227,22.25,145.27,145.2,3.444]
[1727872627228,3.4433,145.23,145.2,3.444]
[1727872627940,3.4437,145.22,145.19,0.12502]
[1727872628234,16.53,145.25,145.19,0.12502]
[1727872628435,2.6208,145.24,145.19,0.12502]
[1727872630140,1.2931,145.24,145.19,0.12502]
[1727872630334,3.4435,145.23,145.19,0.12502]
[1727872630535,1.2931,145.24,145.19,0.12502]
[1727872630840,5.72,145.28,145.2,16.53]
[1727872631037,3.4432,145.24,145.21,3.4436]
[1727872631436,5.72,145.28,145.19,5.84502]
[1727872631632,5.72,145.28,145.2,3.4439]
[1727872631633,3.4433,145.23,145.2,3.4439]
[1727872632039,1.272,145.27,145.2,3.4439]
[1727872632236,3.4432,145.24,145.2,3.4439]
[1727872632539,1.272,145.27,145.19,5.84502]
[1727872632738,3.4434,145.23,145.19,5.84502]
[1727872633238,3.4432,145.24,145.2,3.4439]
[1727872634038,1.272,145.27,145.19,5.84502]
[1727872634235,3.4427,145.26,145.22,3.4434]
[1727872635342,5.72,145.28,145.23,5.72]
[1727872635343,3.4422,145.28,145.23,5.72]
[1727872636239,1.282,145.29,145.24,16.53]
[1727872636838,1.282,145.29,145.23,5.72]
[1727872637043,1.282,145.29,145.2,16.53]
[1727872637044,16.53,145.28,145.2,16.53]
[1727872637238,16.53,145.26,145.19,5.84502]
[1727872637845,3.4436,145.22,145.19,9.28912]
[1727872638043,16.53,145.26,145.19,3.56912]
[1727872639344,22.25,145.28,145.19,16.65502]
[1727872639546,5.72,145.28,145.19,16.65502]
[1727872639743,3.4422,145.28,145.25,3.4428]
[1727872640048,7.002,145.29,145.22,5.72]
[1727872641055,3.4423,145.28,145.25,3.4428]
[1727872641551,7.002,145.29,145.25,3.4428]
[1727872641948,7.002,145.29,145.23,16.53]
[1727872642645,3.4425,145.27,145.23,19.9731]
[1727872643446,3.4425,145.27,145.24,3.443]
[1727872644241,0.12502,145.31,145.23,19.9630455]
[1727872644443,0.12502,145.31,145.25,16.53]
[1727872644651,0.12502,145.31,145.26,5.72]
[1727872644838,3.4416,145.3,145.27,3.4422]
[1727872645043,0.12502,145.31,145.26,9.22912884]
[1727872645241,0.12502,145.31,145.27,16.53]
[1727872645452,0.12502,145.31,145.29,3.4417]
[1727872646052,0.12502,145.31,145.3,3.4416]
[1727872646549,0.12502,145.31,145.3,9.1616]
[1727872646941,0.12502,145.37,145.3,5.72]
[1727872647150,3.56512,145.37,145.31,16.53]
[1727872647453,0.12502,145.37,145.31,16.53]
[1727872648241,0.12502,145.37,145.33,16.53]
[1727872648447,0.12502,145.37,145.31,16.53]
[1727872648750,3.4403,145.36,145.32,3.441]
[1727872648949,0.12502,145.37,145.3,5.72]
[1727872649451,3.4406,145.35,145.32,3.4411]
[1727872650248,3.4409,145.33,145.3,9.1615]
[1727872650754,0.12502,145.37,145.3,5.72]
[1727872651056,0.12502,145.37,145.31,3.4413]
[1727872651057,3.4405,145.35,145.31,3.4413]
[1727872654453,0.12502,145.37,145.29,16.53]
[1727872654454,16.65502,145.37,145.29,16.53]
[1727872654646,16.53,145.35,145.27,7.0928]
[1727872654842,16.53,145.33,145.27,5.7]
[1727872655050,3.442,145.29,145.27,5.7]
[1727872655244,16.53,145.31,145.25,3.56772]
[1727872655454,23.5454,145.33,145.25,3.49447334]
[1727872655653,6.9962,145.34,145.25,20.02447334]
[1727872656351,3.4416,145.31,145.25,20.02447334]
[1727872656551,23.5262,145.34,145.25,20.02447334]